Cogmind - Beta 12 *** ADVENTURER MODE // 2023.09.09 @ 22:45:46 Player: Damos Result: Core destroyed Performance ------------- Evolutions (3) 1500 Regions Visited (8) 1600 Robots Destroyed (73) 365 Value Destroyed (1760) 1760 Prototype IDs (16) 320 Alien Tech Used (0) 0 Bonus (300) 300 TOTAL SCORE: 5845 Bonus ------- Aligned with FarCom 300 Cogmind --------- Core Integrity 0/700 Matter 274/300 Energy 160/160 System Corruption 26% Temperature Cool (-100) Movement Core (150) Ox2 Location -7/Factory Parts ------- > --- POWER (1) -------- Light Nuclear Core > --- PROPULSION (4) --- (None) > --- UTILITY (6) ------ Cryofiber Web Advanced Visual Processing Unit Improved Signal Interpreter Advanced Targeting Computer Transmission Jammer > --- WEAPON (2) ------- (None) > --- INVENTORY (5) ---- Improved Heat Sink Improved Sensor Array Peak State ------------ > --- POWER ------------ Deuterium Engine > --- PROPULSION ------- Cesium-ion Thruster Xenon Bombardment Thruster Xenon Bombardment Thruster Improved Cesium-ion Thruster > --- UTILITY ---------- Advanced Visual Processing Unit Improved Signal Interpreter Advanced Targeting Computer Transmission Jammer Hacking Suite System Shield > --- WEAPON ----------- Field Laser Gauss Rifle > --- INVENTORY -------- Deuterium Engine Improved Heat Sink Improved Sensor Array Remote Datajack [Rating: 46] Favorites ----------- Power Light Nuclear Core Engine Light Ion Engine Power Core Light Nuclear Core Propulsion Flight Unit Leg Aluminum Leg Flight Unit Flight Unit Utility Advanced Visual Processing Unit Device Improved Heat Sink Storage Small Storage Unit Processor Advanced Visual Processing Unit Hackware Hacking Suite Weapon Field Laser Energy Gun Field Laser Energy Cannon Guided Plasma Cannon Ballistic Gun High-powered Shotgun Ballistic Cannon Flak Cannon Special Weapon Remote Datajack Special Melee Weapon Improved Datajack Build | -11 -10 -10 -10 -9 -8 -7 -7 -7 ------- Run | Jun Mat Min Exi Min Mat Fac Was Fac Slots Evolved 6 | . . . . . 4 2 . . Power . | . . . . . . . . . Propulsion 2 | . . . . . 1 1 . . Utility 4 | . . . . . 3 1 . . Weapon . | . . . . . . . . . Parts Attached 134 | 6 19 1 3 2 27 28 . 48 Power 24 | 1 3 . 1 1 5 4 . 9 Engine 17 | 1 3 . 1 1 2 4 . 5 Core 7 | . . . . . 3 . . 4 Reactor . | . . . . . . . . . Propulsion 35 | 2 7 1 . . 7 9 . 9 Treads . | . . . . . . . . . Leg 5 | 2 3 . . . . . . . Wheel . | . . . . . . . . . Hover . | . . . . . . . . . Flight 30 | . 4 1 . . 7 9 . 9 Utility 29 | 1 4 . . . 7 6 . 11 Device 21 | . 2 . . . 4 4 . 11 Storage 2 | 1 1 . . . . . . . Processor 4 | . 1 . . . 3 . . . Hackware 2 | . . . . . . 2 . . Protection . | . . . . . . . . . Artifact . | . . . . . . . . . Weapon 46 | 2 5 . 2 1 8 9 . 19 Energy Gun 29 | . 5 . 1 1 6 2 . 14 Energy Cannon 2 | . . . 1 . . . . 1 Ballistic Gun 5 | 2 . . . . 1 2 . . Ballistic Cannon 1 | . . . . . . . . 1 Launcher . | . . . . . . . . . Special Weapon 7 | . . . . . . 4 . 3 Impact Weapon . | . . . . . . . . . Slashing Weapon . | . . . . . . . . . Piercing Weapon . | . . . . . . . . . Special Melee Weapon 2 | . . . . . 1 1 . . Unidentified Prototypes 6 | . . . 1 . . 1 . 4 Parts Lost 18 | . . . . 2 2 4 . 10 Power 4 | . . . . 1 1 . . 2 Propulsion 9 | . . . . . 1 3 . 5 Utility 1 | . . . . . . 1 . . Weapon 4 | . . . . 1 . . . 3 Highest Loss Streak 3 | . . . . 1 1 2 . 3 To Critical Strikes . | . . . . . . . . . Average Slot Usage (%) 91 | . 93 100 100 98 90 95 92 85 Engine 5 | . 14 14 14 12 2 6 7 4 Core 2 | . . . . . 6 . . 2 Leg 1 | . 18 . . . . . . . Flight 25 | . 9 28 28 28 26 27 30 26 Device 12 | . 11 14 14 14 13 9 7 12 Processor 21 | . 10 14 14 14 22 23 23 23 Hackware 3 | . . . . . . 10 7 4 Energy Gun 11 | . 10 28 28 28 12 7 7 8 Ballistic Gun 4 | . 13 . . . 5 3 7 . Naked Turns . | . . . . . . . . . Heaviest Build 19 | 11 12 8 8 8 13 19 18 19 Greatest Support 26 | 20 26 8 8 8 14 23 18 22 Greatest Overweight (x) 2 | . . . . . . 1 . 2 Average Overweight (x) . | . . . . . . . . . Largest Inventory Capacity 8 | 8 8 5 5 5 5 5 5 5 Average Capacity 5 | 7 5 5 5 5 5 5 5 5 Most Carried 7 | 1 7 5 5 5 5 5 5 5 Average Carried 4 | . 3 5 5 4 4 4 5 4 Final Capacity 8 | 8 5 5 5 5 5 5 5 5 Final Carried 5 | 1 5 5 5 5 5 5 5 2 Class Distribution -------------------- 29% | Hacker-Sprinter 25% | Scavenger-Mutant 14% | Scavenger-Sprinter 8% | Sprinter 7% | Mutant 6% | Hacker-Scout 3% | Hacker-Mutant Dominant Class ---------------- Mutant | -10/Materials Scavenger-Mutant | -10/Mines Scavenger-Mutant | -10/Exiles Scavenger-Mutant | -9/Mines Scavenger-Mutant | -8/Materials Hacker-Sprinter | -7/Factory Hacker-Sprinter | -7/Waste Hacker-Sprinter | -7/Factory Resources | -11 -10 -10 -10 -9 -8 -7 -7 -7 ----------- Run | Jun Mat Min Exi Min Mat Fac Was Fac Matter Collected 1896 | 226 288 9 . 26 381 371 . 595 Remotely . | . . . . . . . . . Salvage Created 2252 | . 265 49 . 40 784 437 . 677 Parts 140 | . 22 6 . . 52 31 . 29 Haulers Intercepted 2 | . . . . . 1 . . 1 Recyclers Shooed 3 | . . . . . 1 . . 2 Parts Field Recycled . | . . . . . . . . . Retrieved Matter . | . . . . . . . . . Parts Self-Destructed . | . . . . . . . . . Prevented . | . . . . . . . . . Kills | -11 -10 -10 -10 -9 -8 -7 -7 -7 ------- Run | Jun Mat Min Exi Min Mat Fac Was Fac Combat Hostiles Destroyed 50 | . 8 3 . 2 19 8 . 10 Guns 43 | . 8 . . 2 16 7 . 10 AOE 6 | . . 3 . . 3 . . . Classes Destroyed 13 | . 3 1 . 1 4 3 . 1 Worker 4 | . . 1 . . 1 1 . 1 Builder 1 | . . . . . . 1 . . Hauler 2 | . . . . . 1 . . 1 Recycler 4 | . . . . . 2 . . 2 Operator 2 | . . . . . 1 . . 1 Drone 1 | . . . . . . . . 1 Watcher 13 | . 3 . . . 3 4 . 3 Swarmer 28 | . 6 3 . . 12 3 . 4 Grunt 11 | . 2 . . . 6 . . 3 Sentry 1 | . . . . . 1 . . . Hunter 1 | . . . . . . 1 . . Programmer 6 | . . . . . . 4 . 2 Assembled 2 | . . . . 2 . . . . Best Kill Streak 6 | . 4 4 . 2 6 3 . 6 Combat Bots Only 5 | . 3 3 . 2 5 3 . 4 Max Kills in Single Turn 4 | . 2 3 . 1 4 1 . 2 Gunslinging 1 | . 1 . . . . . . . Exploded 2 | . . 2 . . 2 . . . Melee . | . . . . . . . . . Uniques/NPCs Destroyed . | . . . . . . . . . Combat | -11 -10 -10 -10 -9 -8 -7 -7 -7 -------- Run | Jun Mat Min Exi Min Mat Fac Was Fac Damage Taken 2935 | . 141 49 . 138 716 575 . 1316 Core 1022 | . 5 6 . 40 244 177 . 550 Absorbed by Shields . | . . . . . . . . . Regen/Repaired (Parts) 253 | . . . . . 83 . . 170 Core Remaining (%) 78 | 100 . . . 79 55 . . . Volleys Fired 207 | . 28 3 . 6 53 42 . 75 Largest 2 | . 2 2 . 2 2 2 . 2 Hottest 126 | . 112 80 . 80 126 126 . 126 Shots Fired 332 | . 47 6 . 12 87 79 . 101 Gun 329 | . 47 6 . 12 87 77 . 100 Cannon . | . . . . . . . . . Launcher . | . . . . . . . . . Special 3 | . . . . . . 2 . 1 Kinetic 93 | . 34 . . . 21 33 . 5 Thermal 176 | . 13 . . . 32 44 . 87 Explosive . | . . . . . . . . . Electromagnetic 60 | . . 6 . 12 34 . . 8 Robot Hit Streak 17 | . 11 12 . 6 16 17 . 11 Robot Miss Streak 3 | . 2 1 . 1 2 3 . 2 Penetration Max 1 | . . . . . . 1 . . Secondary Targets 5 | . 1 . . 1 . 1 . 2 Max Gunslinging Chain 1 | . 1 . . 1 . 1 . 1 Shots Hit Robots 256 | . 39 4 . 9 74 59 . 71 Core Hits 124 | . 15 3 . 4 39 24 . 39 Critical Kills 1 | . . . . . 1 . . . Critical Parts Destroyed 1 | . . . . . . 1 . . Critical Strikes 12 | . . . . . 2 5 . 5 Burn 10 | . . . . . 1 4 . 5 Destroy 2 | . . . . . 1 1 . . Melee Attacks 2 | . . . . . 2 . . . Impact . | . . . . . . . . . Slashing . | . . . . . . . . . Piercing . | . . . . . . . . . Sneak Attacks . | . . . . . . . . . Combat Hostiles . | . . . . . . . . . Follow-up Attacks . | . . . . . . . . . Damage Inflicted 4724 | . 451 164 . 98 1581 1190 . 1240 Guns 4150 | . 447 45 . 98 1149 1190 . 1221 Cannons . | . . . . . . . . . Explosions 551 | . . 119 . . 432 . . . Melee . | . . . . . . . . . Ramming 23 | . 4 . . . . . . 19 Kinetic 1159 | . 285 . . . 331 481 . 62 Thermal 2869 | . 162 119 . . 780 709 . 1099 Explosive 99 | . . . . . 99 . . . Electromagnetic 574 | . . 45 . 98 371 . . 60 Impact . | . . . . . . . . . Slashing . | . . . . . . . . . Piercing . | . . . . . . . . . Highest Corruption 26 | . . . . . 1 3 11 26 Average Corruption 6 | . . . . . 1 2 6 14 Corruption Purged . | . . . . . . . . . Corruption Blocked . | . . . . . . . . . Effects 111 | . . . . . 13 12 2 84 Message Errors 16 | . . . . . 4 2 . 10 Matter Fused 27 | . . . . . 3 2 2 20 Heat Flow Errors 11 | . . . . . 1 1 . 9 Energy Discharges 15 | . . . . . 2 1 . 12 Parts Rejected 1 | . . . . . . . . 1 Parts Fused 1 | . . . . . . 1 . . Data Loss (minor) 13 | . . . . . . 2 . 11 Data Loss (major) 6 | . . . . . 1 . . 5 Misfires 5 | . . . . . 1 1 . 3 Alerts 7 | . . . . . 1 2 . 4 Misdirections 4 | . . . . . . . . 4 Weapon Failures 5 | . . . . . . . . 5 Overload Shots . | . . . . . . . . . Overflow Damage 42 | . . 12 . . 30 . . . Projectiles . | . . . . . . . . . Explosions 42 | . . 12 . . 30 . . . Melee . | . . . . . . . . . Knockbacks . | . . . . . . . . . Impact . | . . . . . . . . . Kinetic . | . . . . . . . . . Secondary . | . . . . . . . . . Self-Inflicted Damage 246 | . . 28 . . 212 . . 6 Shots 5 | . . 1 . . 4 . . . Rammed 13 | . . . . . . . . 13 Targets Rammed 14 | . 1 . . . . . . 13 Kicked 1 | . 1 . . . . . . . Crushed . | . . . . . . . . . Highest Temperature 506 | . 18 6 . 9 131 192 . 506 Average Temperature 88 | . 9 6 . 9 15 48 . 141 Received Heat Transfer 616 | . 51 . . 40 216 72 . 237 Effects 5 | . . . . . . . . 5 Energy Bleed 2 | . . . . . . . . 2 Interference 1 | . . . . . . . . 1 Short Circuit 1 | . . . . . . . . 1 Damage (minor) 1 | . . . . . . . . 1 Siege Activations . | . . . . . . . . . Robots Corrupted . | . . . . . . . . . Combat Hostiles . | . . . . . . . . . Parts Fried 1 | . . . . . 1 . . . Impact Corruptions . | . . . . . . . . . Robots Melted 1 | . . . . . . 1 . . Combat Hostiles 1 | . . . . . . 1 . . Parts Melted 12 | . . . . . 1 6 . 5 Heat Transferred 6233 | . 407 100 . . 1360 1665 . 2701 Parts Sabotaged . | . . . . . . . . . Parts Stolen . | . . . . . . . . . Parts Stripped . | . . . . . . . . . Power Chain Reactions 4 | . . 2 . . 2 . . . Missiles Intercepted . | . . . . . . . . . Alert | -11 -10 -10 -10 -9 -8 -7 -7 -7 ------- Run | Jun Mat Min Exi Min Mat Fac Was Fac Peak Influence 300 | . 205 169 . 15 207 164 102 300 Initial 78 | . . 67 . . 1 78 47 62 Average 79 | . 86 84 . 7 69 55 85 123 Maximum Alert Level 1 | . 1 . . . 1 . . 1 Low Security (%) 91 | 100 75 100 . 100 98 100 100 77 Level 1 8 | . 24 . . . 1 . . 22 Level 2 . | . . . . . . . . . Level 3 . | . . . . . . . . . Level 4 . | . . . . . . . . . Level 5 . | . . . . . . . . . High Security . | . . . . . . . . . Max Security . | . . . . . . . . . Squads Dispatched 28 | . . 1 . . 2 9 . 16 Investigation 16 | . . . . . 1 5 . 10 Extermination 7 | . . . . . . 3 . 4 Reinforcement 4 | . . . . . 1 1 . 2 Assault 1 | . . 1 . . . . . . Garrison . | . . . . . . . . . Intercept . | . . . . . . . . . Searches Triggered . | . . . . . . . . . Construction Impeded . | . . . . . . . . . Haulers Reinforced 1 | . . . . . . . . 1 Active Scanning Responses . | . . . . . . . . . Cargo Convoy Interrupts . | . . . . . . . . . Stealth | -11 -10 -10 -10 -9 -8 -7 -7 -7 --------- Run | Jun Mat Min Exi Min Mat Fac Was Fac Distress Signals 5 | . . . . . 2 1 . 2 Communications Jammed 14 | . . . . . . . . 14 Distress Signals 4 | . . . . . . . . 4 Times Spotted 154 | . 12 3 . 16 40 21 7 55 Peak Tracking Total 9 | . 4 3 . 9 7 4 6 7 Tactical Retreats 33 | . 1 . . 3 11 4 1 13 Traps | -11 -10 -10 -10 -9 -8 -7 -7 -7 ------- Run | Jun Mat Min Exi Min Mat Fac Was Fac Traps Triggered 13 | . . . . 1 . 6 . 6 Indirectly . | . . . . . . . . . Trap Hack Attempts . | . . . . . . . . . Triggered . | . . . . . . . . . Disarmed . | . . . . . . . . . Reprogrammed . | . . . . . . . . . Reused . | . . . . . . . . . Traps Extracted . | . . . . . . . . . Installed . | . . . . . . . . . Triggered . | . . . . . . . . . Machines | -11 -10 -10 -10 -9 -8 -7 -7 -7 ---------- Run | Jun Mat Min Exi Min Mat Fac Was Fac Machines Disabled 3 | . . . . . 3 . . . Max in Single Turn 2 | . . . . . 2 . . . Machines Repaired . | . . . . . . . . . Machines Sabotaged . | . . . . . . . . . Overloaded Fab Kills . | . . . . . . . . . Hacking | -11 -10 -10 -10 -9 -8 -7 -7 -7 --------- Run | Jun Mat Min Exi Min Mat Fac Was Fac Machines Accessed 50 | . 7 . . 1 8 20 . 14 Terminals 38 | . 7 . . . 6 16 . 9 Fabricators 3 | . . . . . . 1 . 2 Repair Stations 7 | . . . . . 2 2 . 3 Recycling Units . | . . . . . . . . . Scanalyzers . | . . . . . . . . . Garrison Access 1 | . . . . . . 1 . . Total Hacks 140 | . 20 . . 1 26 51 . 42 Successful 72 | . 11 . . 1 17 23 . 20 Failed 67 | . 9 . . . 8 28 . 22 Catastrophic 12 | . 3 . . . 1 6 . 2 Database Lockouts 1 | . . . . . 1 . . . Manual 66 | . 12 . 1 . 19 19 . 15 Terminals 103 | . 20 . . . 19 39 . 25 Fabricators 9 | . . . . . . 2 . 7 Repair Stations 25 | . . . . . 7 8 . 10 Recycling Units . | . . . . . . . . . Scanalyzers . | . . . . . . . . . Garrison Access 2 | . . . . . . 2 . . Terminal Hacks 48 | . 11 . . 1 9 18 . 9 Record 6 | . . . . . . 3 . 3 Part Schematic 5 | . 3 . . . . 1 . 1 Robot Analysis 5 | . . . . . 4 1 . . Prototype ID Bank 6 | . 3 . . . 1 2 . . Open Door 1 | . . . . 1 . . . . Open DSF 5 | . . . . . . 4 . 1 Alert Level 8 | . 2 . . . 4 1 . 1 Unreport Threat 3 | . . . . . . 1 . 2 Locate Traps 2 | . 2 . . . . . . . Maintenance Status 1 | . 1 . . . . . . . Surveillance Status 1 | . . . . . . 1 . . Investigation Status 1 | . . . . . . 1 . . Recall Investigation 3 | . . . . . . 2 . 1 Registered Prototypes 1 | . . . . . . 1 . . Fabricator Hacks 5 | . . . . . . 2 . 3 Load Schematic 3 | . . . . . . 1 . 2 Build 2 | . . . . . . 1 . 1 Repair Station Hacks 15 | . . . . . 6 1 . 8 Scan Component 8 | . . . . . 3 1 . 4 Repair 7 | . . . . . 3 . . 4 Recycling Unit Hacks . | . . . . . . . . . Scanalyzer . | . . . . . . . . . Garrison Access Hacks . | . . . . . . . . . Unauthorized Hacks 4 | . . . . . 2 2 . . Terminals 4 | . . . . . 2 2 . . Assimilate 4 | . . . . . 2 2 . . Fabricators . | . . . . . . . . . Repair Stations . | . . . . . . . . . Recycling Units . | . . . . . . . . . Scanalyzers . | . . . . . . . . . Garrison Access . | . . . . . . . . . Data Cores Recovered . | . . . . . . . . . Used . | . . . . . . . . . Hacking Detections 45 | . 7 . . . 7 17 . 14 Full Trace Events 14 | . . . . . 1 3 . 10 Feedback Events 1 | . . . . . 1 . . . Corruption 1 | . . . . . 1 . . . Feedback Blocked . | . . . . . . . . . Robot Schematics Acquired . | . . . . . . . . . Robots Built . | . . . . . . . . . Authchips . | . . . . . . . . . Time . | . . . . . . . . . Total Robot Build Rating . | . . . . . . . . . Part Schematics Acquired 5 | . 3 . . . . 1 . 1 Parts Built 2 | . . . . . . . . 2 Authchips . | . . . . . . . . . Time 135 | . . . . . . 51 . 84 Total Part Build Rating 8 | . . . . . . . . 8 Parts Repaired 7 | . . . . . 3 . . 4 Time 161 | . . . . . 90 . . 71 Parts Recycled . | . . . . . . . . . Recycled Matter . | . . . . . . . . . Retrieved Matter . | . . . . . . . . . Retrieved Components . | . . . . . . . . . Parts Scanalyzed . | . . . . . . . . . Part Schematics Acquired . | . . . . . . . . . Parts Damaged . | . . . . . . . . . Bothacking | -11 -10 -10 -10 -9 -8 -7 -7 -7 ------------ Run | Jun Mat Min Exi Min Mat Fac Was Fac Used RIF Installer . | . . . . . . . . . Robots Hacked 1 | . . . . . 1 . . . Non-combat . | . . . . . . . . . Combat 1 | . . . . . 1 . . . Robot Hacks Applied 1 | . . . . . 1 . . . parse_system 1 | . . . . . 1 . . . Relay Couplers Released . | . . . . . . . . . Fabnet Peak Effective % . | . . . . . . . . . Robots Rewired . | . . . . . . . . . Allies Hacked . | . . . . . . . . . Hacks Repelled . | . . . . . . . . . Allies | -11 -10 -10 -10 -9 -8 -7 -7 -7 -------- Run | Jun Mat Min Exi Min Mat Fac Was Fac Total Allies 1 | . . . . . . . 1 . Largest Group 1 | . . . . . . . 1 . Highest-Rated Group 31 | . . . . . . . 31 . Highest-Rated Ally 31 | . . . . . . . 31 . Total Orders . | . . . . . . . . . Ally Attacks 9 | . . . . . . . 9 . Total Damage 171 | . . . . . . . 171 . Kills . | . . . . . . . . . Allies Corrupted . | . . . . . . . . . Allies Melted . | . . . . . . . . . Intel | -11 -10 -10 -10 -9 -8 -7 -7 -7 ------- Run | Jun Mat Min Exi Min Mat Fac Was Fac Robot Analysis Total 5 | . . . . . 4 1 . . Derelict Logs Recovered 3 | . . 1 . 2 . . . . Drone Launches . | . . . . . . . . . Drone Recoveries . | . . . . . . . . . Exploration | -11 -10 -10 -10 -9 -8 -7 -7 -7 ------------- Run | Jun Mat Min Exi Min Mat Fac Was Fac Turns Passed 8470 | 60 769 131 322 197 2918 1918 118 2037 Spaces Moved 10881 | 43 903 320 855 441 2162 3183 371 2603 Core 8 | 1 . . . . . . . 7 Treads . | . . . . . . . . . Legs 363 | 42 321 . . . . . . . Wheels . | . . . . . . . . . Hover . | . . . . . . . . . Flight 10510 | . 582 320 855 441 2162 3183 371 2596 Fastest Speed 26 | 50 37 37 37 37 30 26 26 26 Average Speed 35 | 118 66 37 37 37 31 32 26 31 Slowest Speed 150 | 120 120 37 37 37 34 110 26 150 Overloaded Moves . | . . . . . . . . . Propulsion Burnouts . | . . . . . . . . . Robots Hopped 87 | . 4 1 . 3 19 31 . 29 Cave-ins Triggered . | . . . . . . . . . Exploration Rate (%) 73 | 3 99 85 92 78 81 70 99 57 Regions Visited 8 Branch Regions 3 Pre-discovered Areas 1 | . . . . 1 . . . . Known Exits Taken 5 | . 1 1 1 1 1 . . . Unknown Exits Taken 1 | 1 . . . . . . . . Scrap Searched 1 | . . 1 . . . . . . Spaces Dug . | . . . . . . . . . Terrain Destroyed 71 | . . 12 . . 58 1 . . Melee . | . . . . . . . . . Projectile 1 | . . . . . . 1 . . AOE 70 | . . 12 . . 58 . . . Terrain Rammed . | . . . . . . . . . Walls Destroyed . | . . . . . . . . . Machines Disabled . | . . . . . . . . . Actions | -11 -10 -10 -10 -9 -8 -7 -7 -7 --------- Run | Jun Mat Min Exi Min Mat Fac Was Fac Total 15036 | 49 1027 325 860 458 4285 3942 391 3699 Wait 3735 | . 41 2 . 12 2031 701 21 927 Move 10704 | 42 894 317 854 434 2125 3122 370 2546 Hop 83 | . 4 1 . 3 17 30 . 28 Pick Up 42 | 1 17 . . 1 10 5 . 8 Fast Attach 55 | 6 5 . 3 1 11 7 . 22 Attach 24 | . 2 . . 1 4 3 . 14 Detach 15 | . 2 . . . 1 2 . 10 Swap 55 | . 12 1 . . 12 18 . 12 Drop 83 | . 21 1 3 . 19 12 . 27 Fire 207 | . 28 3 . 6 53 42 . 75 Melee 2 | . . . . . 2 . . . Ram 12 | . . . . . . . . 12 Kick 1 | . 1 . . . . . . . Crush . | . . . . . . . . . Escape Stasis 18 | . . . . . . . . 18 Rewire . | . . . . . . . . . Trap . | . . . . . . . . . Miscellaneous . | . . . . . . . . . Route ------- -11/Junkyard -10/Materials (discovered 4 exits: *Mat x3 / *Min) -10/Mines (discovered 3 exits: *Mat x2 / *Exi) -10/Exiles (discovered 2 exits: *Min x2) -9/Mines -8/Materials (discovered 2 exits: *Fac x2) -7/Factory (discovered 5 exits: *Fac x3 / *Sto / *Low) -7/Waste -7/Factory (discovered 2 exits: *Fac / *Sto) History --------- Turn | Location | Event 11 | -11/Junkyard | Discovered new exit (range 15) 61 | -11/Junkyard | Entered Materials 165 | -10/Materials | Discovered new exit (range 13) 225 | -10/Materials | Discovered new exit (range 8) 258 | -10/Materials | Identified exit to Mines 311 | -10/Materials | Identified exit to Materials 316 | -10/Materials | Build established: Mutant 608 | -10/Materials | Discovered exit to Materials (range 8) 700 | -10/Materials | Discovered exit to Materials (range 16) 830 | -10/Materials | Entered Mines 852 | -10/Mines | Discovered exit to Materials (range 11) 876 | -10/Mines | Discovered exit to Materials (range 6) 913 | -10/Mines | Met a Derelict testing a Signal Generator 926 | -10/Mines | Learned 4 Materials zone layouts 948 | -10/Mines | Received a Rocket Launcher from a helpful Derelict 955 | -10/Mines | Deemed a non-threat by the Exiles lab entrance 956 | -10/Mines | Discovered new exit (range 5) 957 | -10/Mines | Identified exit to Exiles 961 | -10/Mines | Entered Exiles 967 | -10/Exiles | Build established: Scavenger-Mutant 974 | -10/Exiles | Met 8R-AWN 979 | -10/Exiles | Met EX-HEX 993 | -10/Exiles | Met EX-DEC 1003 | -10/Exiles | Visited The Gauntlet 1053 | -10/Exiles | Discovered new exit (range 14) 1093 | -10/Exiles | Met EX-BIN 1097 | -10/Exiles | Aligned with FarCom system 1097 | -10/Exiles | Given EX-Vault access code 1107 | -10/Exiles | Opened EX-Vault 1113 | -10/Exiles | Found Prototype Energy Cannon 1113 | -10/Exiles | Identified Gui. Plasma Cannon 1125 | -10/Exiles | Warned to stay clear of 0b10 Research branches 1234 | -10/Exiles | Discovered new exit (range 14) 1238 | -10/Exiles | Identified exit to Mines 1283 | -10/Exiles | Entered Mines 1298 | -9/Mines | Discovered new exit (range 14) 1302 | -9/Mines | Identified exit to Materials 1330 | -9/Mines | Met a Derelict who couldn't figure out how to use a Trap Extractor 1347 | -9/Mines | Learned location of Zion (-7) 1357 | -9/Mines | Assembled infested the area 1480 | -9/Mines | Entered Materials 1480 | -8/Materials | Evolved 4 slots: Propulsion x1, Utility x3 1481 | -8/Materials | Identified exit to Factory 1514 | -8/Materials | Repaired EM Pulse Gun 2144 | -8/Materials | Repaired Flight Unit 3154 | -8/Materials | Build established: Scavenger-Sprinter 3857 | -8/Materials | Central database locked down 4038 | -8/Materials | Repaired Lgt. Nuclear Core 4041 | -8/Materials | Discovered exit to Factory (range 17) 4398 | -8/Materials | Entered Factory 4398 | -7/Factory | Evolved 2 slots: Propulsion x1, Utility x1 4578 | -7/Factory | Identified exit to DSF 4737 | -7/Factory | Discovered new exit (range 20) 4918 | -7/Factory | Discovered new exit (range 8) 4920 | -7/Factory | Identified exit to Storage 4984 | -7/Factory | Discovered new exit (range 16) 4988 | -7/Factory | Identified exit to Lower Caves 5239 | -7/Factory | Build established: Hacker-Sprinter 5887 | -7/Factory | Discovered new exit (range 10) 5889 | -7/Factory | Identified exit to Factory 6182 | -7/Factory | Discovered exit to Factory (range 17) 6316 | -7/Factory | Sucked down chute 6316 | -7/Factory | Entered Waste 6317 | -7/Waste | Met a frightened Derelict 6322 | -7/Waste | Spotted C-40 Crusher 6322 | -7/Waste | Spotted C-40 Crusher 6327 | -7/Waste | Spotted C-40 Crusher 6329 | -7/Waste | Spotted C-40 Crusher 6330 | -7/Waste | Spotted C-40 Crusher 6330 | -7/Waste | Spotted C-40 Crusher 6331 | -7/Waste | EMP discharged 6335 | -7/Waste | Discovered new exit (range 13) 6431 | -7/Waste | EMP discharged 6431 | -7/Waste | System corruption reached 10% 6433 | -7/Waste | Identified exit to Factory 6434 | -7/Waste | Entered Factory 6462 | -7/Factory | Repaired Field Laser 6738 | -7/Factory | Discovered exit to Storage (range 5) 7300 | -7/Factory | Discovered exit to Factory (range 17) 7347 | -7/Factory | Repaired Xenon Bombardment Thruster 7396 | -7/Factory | Fabricated Xenon Bombardment Thruster? 7411 | -7/Factory | Repaired Field Laser 7824 | -7/Factory | Repaired Lgt. Nuclear Core 8049 | -7/Factory | Build established: Sprinter 8087 | -7/Factory | Core integrity fell below 50% 8458 | -7/Factory | Core integrity fell below 20% 8471 | -7/Factory | Core destroyed Last Messages --------------- ALERT: Rogue bot located, Programmers report to Factory Zone 7B. System corrupted: Imp. Cesium-ion Thruster rejected. Lgt. Deuterium Engine destroyed. Lightning Gun destroyed. R-06 Scavenger collects Imp. Cesium-ion Thruster. UKVK:#WDPER|NA3RCROW#5L Slammed into P-60 Hacker. Destabilizing: Core damaged (-35). Slammed into P-60 Hacker. Imp. Signal Interpreter broken. Destabilizing: Short circuit. Lgt. Nuclear Core destroyed. Slammed into P-60 Hacker. Destabilizing: Core damaged (-28). Slammed into P-60 Hacker. Critical hit (Burn: +37). Slammed into P-60 Hacker. Destabilizing: Core damaged (-28). [Achievement: Just Browsing] [Achievement: Achiever] Map ----- +----------------------------------------------------+ | # # # """ #???????????????????# | | #] / / """ #???????????????????# | | # # # """ #???????????????????# | | # # # #???????????????????# | | # # ########??????###########??# | | ####+#############"#?????????????# ! #??# | | #?????#%#?????????????# """ [ #??# | | #?????#"#?????????????# "T" #??# | | #?????# #?????????????# #### | | #????## ##????????????########+## | | """" """" +??? ????????????????# | | """" """" #??? k ????????????????# ##### | | """" """" #????u ??????????????##+######+#### | | """" """" +????? ??????????????# =% | | """" """" #?????# ??????????????# !! | | """" """" #?????# ?????????????# | | #?????+ ?????????????# """"""" """" | | #?????# ?????????????# """"""" """" | | #+##########?????# #####????????# """"""" """" | | # #??????????????# #????????# """"""" """" | | # #??????????????# #????????############## | | # #??????????????# #???##############????? | | # ###????????????# ###?# #????? | | ############## #?# #????? | | ### [ #????? | | @p k + #???? | | ### #?? | | ##+############# T## g #?# #?""" | | # ### #?????#???## g ##?# # """ | | # #?# % #??????????# #??# / """ | | # #?# #??????????# #??# # | | # #?# #??????????# g#??# #?? | | # #?# ! #??######### ##?# #????? | | # ### #??# # #?# #????? | | #[ #??# T # #########+##+###????? | | # #??# + #??????? | | # #??# # ###### #??????? | | |###+######### # #????# #??????? | | #?# # # ### ###????# #??????? | | #?# # """ ########?# #??????# #??????? | | ### # """"" #????????# #??????# #??????? | | + """"" #????????# #??????# #??##### | | #+### # #????#####+######## #??? | | # #= #????# # #??? | | """ # # !#????# """"""""" # #?? | | """ # #########????# # #? | | """ # ############## """"""""" # # [! | | # / # # !] | | ] # ### """"""""" + + ! | | ! # """ """ #?# # # | +----------------------------------------------------+ Best States ------------- Heat Dissipation 48 Energy Generation 18 Energy Capacity 310 Matter Stores 300 Matter Capacity 300 Sight Range 20 Robot Scan Range 15 Terrain Scan Density 10 ECM Strength 2 Jamming Range 12 Base Temperature (-) 100 Resistance: KI 20 Resistance: TH 20 Resistance: EX 20 Resistance: EM 20 Resistance: I 20 Resistance: S 20 Resistance: P 20 Evasion (%) 64 Targeting Accuracy 8 Energy Filtering 30 Offensive Hacking 20 Defensive Hacking 10 Item Schematics ----------------- Lgt. Cannon | -10/Materials | Hacked Signal Interpreter | -10/Materials | Hacked Ion Engine | -10/Materials | Hacked Linear Gravjet | -7/Factory | Hacked Xenon Bombardment Thruster | -7/Factory | Hacked Robot Schematics ------------------ None Fabricated ------------ Xenon Bombardment Thruster | x2 | -7/Factory Alien Tech Used ----------------- None Achievements -------------- Achiever Armchair Analyst Just Browsing No Signal Party Time Total Silence Challenges ------------ None Game ------ Seed VariableGrapheneMagmablaster Manual? 0 Play Time 02:24:46 Cumulative 22.9 hours Start 2023.09.09 @ 17:23:31 End 2023.09.09 @ 22:45:46 Sessions 3 Manual Loads 0 Difficulty Adventurer Special Mode None Game No. 8 Rogue 0 Adventurer 8 Explorer 0 Win Type - Total 0 Types 0/0/0/0/0/0/0/0/0 Lore% 24 Gallery% 25 Achievement% 26 Wizard Run 0 Options --------- ASCII 0 Keyboard 0 Movement Numpad Keybinds 0 Fullscreen 1 Font 24/Smallcaps Map View 76x50 Tactical HUD 0 Map Filters NONE Filters NONE Steam X RUN: e04b06bb-d17a-4e56-bb0e-fa494ed8ef32